lending/lending_fUSD_20240131
["ID","MTS","AMOUNT","RATE_DAILY","PERIOD"]
[313038314,1706668238870,-310.34,0.000348,2]
[313038316,1706668238878,-310.34,0.000348,2]
[313038318,1706668238888,-310.34,0.000348,2]
[313038320,1706668238900,-310.34,0.000348,2]
[313038322,1706668238911,-310.34,0.000348,2]
[313038324,1706668238921,-310.34,0.000348,2]
[313038326,1706668238930,-310.34,0.000348,2]
[313038328,1706668238940,-310.34,0.000348,2]
[313038330,1706668238949,-310.34,0.000348,2]
[313038332,1706668238960,-2437.21191302,0.00034876,2]
[313038334,1706668238969,-150.0,0.00034876,2]
[313038336,1706668238979,-542.49914864,0.000349,2]
[313038338,1706668238987,-5000.0,0.00035,7]
[313038340,1706668238996,-231.50696066,0.00035,4]
[313038342,1706668239006,-500.0,0.00035,7]
[313038344,1706668239017,-12330.67385886,0.00035,4]
[313038345,1706668239026,-500.0,0.00035079,2]
[313038346,1706668239035,-200.0,0.00035079,2]
[313038347,1706668239044,-500.0,0.00035079,2]
[313038348,1706668239054,-200.0,0.00035079,2]
[313038349,1706668239063,-500.0,0.0003508,2]
[313038350,1706668239073,-500.0,0.0003508,2]
[313038351,1706668239081,-200.0,0.0003508,2]
[313038352,1706668239091,-500.0,0.0003508,2]
[313038353,1706668239100,-500.0,0.0003508,2]
[313038354,1706668239109,-500.0,0.0003508,2]
[313038355,1706668239118,-500.0,0.0003508,2]
[313038356,1706668239128,-200.0,0.0003508,2]
[313038357,1706668239137,-200.0,0.0003508,2]
[313038358,1706668239146,-200.0,0.0003508,2]
[313038359,1706668239155,-200.0,0.0003508,2]
[313038360,1706668239166,-313.89447332,0.00035163,2]
[313038361,1706668239175,-2437.21191302,0.00035178,2]
[313038362,1706668239184,-191.04417907,0.0003519,2]
[313038363,1706668239194,-4519.85124484,0.000352,7]
[313038364,1706668239204,-22567.05302783,0.00035222,4]
[313038365,1706668239214,-200.0,0.000353,9]
[313038366,1706668239224,-500.0,0.000353,2]
[313038367,1706668239234,-315.565792,0.000353,9]
[313038368,1706668239243,-9133.2466753,0.00035363,4]
[313038369,1706668239253,-155.35383227,0.00035363,4]
[313038370,1706668239262,-155.15760888,0.00035363,4]
[313038371,1706668239271,-1310.59267949,0.00035363,2]
[313038372,1706668239280,-157.79496172,0.00035363,4]
[313038373,1706668239289,-196.41393607,0.00035363,4]
[313038374,1706668239299,-500.0,0.00035371,2]
[313038375,1706668239308,-500.0,0.00035371,2]
[313038376,1706668239318,-500.0,0.00035371,2]
[313038377,1706668239327,-500.0,0.00035371,2]
[313038378,1706668239337,-500.0,0.00035371,2]
[313038379,1706668239346,-500.0,0.00035371,2]
[313038380,1706668239356,-500.0,0.00035371,2]
[313038381,1706668239365,-500.0,0.00035371,2]
[313038382,1706668239374,-500.0,0.00035371,2]
[313038383,1706668239384,-500.0,0.00035371,2]
[313038384,1706668239393,-500.0,0.00035371,2]
[313038385,1706668239403,-500.0,0.00035371,2]
[313038386,1706668239415,-500.0,0.00035371,2]
[313038387,1706668239424,-500.0,0.00035371,2]
[313038388,1706668239433,-500.0,0.00035371,2]
[313038389,1706668239445,-350.0,0.00035371,2]
[313038390,1706668239458,-500.0,0.00035371,2]
[313038391,1706668239475,-500.0,0.00035371,2]
[313038392,1706668239485,-500.0,0.00035371,2]
[313038393,1706668239495,-500.0,0.00035371,2]
[313038394,1706668239504,-500.0,0.00035371,2]
[313038395,1706668239513,-500.0,0.00035371,2]
[313038396,1706668239522,-500.0,0.00035371,2]
[313038397,1706668239532,-500.0,0.00035371,2]
[313038398,1706668239541,-500.0,0.00035371,2]
[313038399,1706668239551,-500.0,0.00035371,2]
[313038400,1706668239560,-500.0,0.00035371,2]
[313038401,1706668239570,-500.0,0.00035371,2]
[313038402,1706668239579,-500.0,0.00035371,2]
[313038403,1706668239589,-500.0,0.00035371,2]
[313038404,1706668239598,-500.0,0.00035371,2]
[313038405,1706668239607,-500.0,0.00035371,2]
[313038406,1706668239616,-500.0,0.00035371,2]
[313038407,1706668239625,-500.0,0.00035371,2]
[313038408,1706668239635,-500.0,0.00035371,2]
[313038409,1706668239644,-500.0,0.00035371,2]
[313038410,1706668239654,-500.0,0.00035371,2]
[313038411,1706668239666,-500.0,0.00035371,2]
[313038412,1706668239676,-86774.2414077,0.00035371,2]
[313038413,1706668239686,-584.3133354,0.00035371,2]
[313038414,1706668239696,-361.232219,0.00035371,2]
[313038415,1706668239705,-179.17164352,0.00035395,4]
[313038416,1706668239715,-3224.4066015,0.00035395,4]
[313038417,1706668239725,-158.13484733,0.00035396,4]
[313038418,1706668239734,-214.16708375,0.00035396,4]
[313038419,1706668239744,-156.17048225,0.00035397,4]
[313038420,1706668239753,-210.29381202,0.00035397,4]
[313038421,1706668239764,-273.07674301,0.00035397,4]
[313038422,1706668239777,-177.97208985,0.00035397,4]
[313038423,1706668239787,-198.44637152,0.00035397,4]
[313038424,1706668239799,-261.07397501,0.00035397,4]
[313038425,1706668239810,-300.07460703,0.00035397,4]
[313038426,1706668239820,-364.56758947,0.00035397,4]
[313038427,1706668239830,-180.65103958,0.00035397,4]
[313038428,1706668239840,-578.50433953,0.00035397,4]
[313038429,1706668239850,-260.39182374,0.00035397,4]
[313038430,1706668239860,-1412.53646978,0.00035397,2]
[313038431,1706668239869,-1282.91514656,0.00035398,5]
[313038432,1706668239879,-375.20474217,0.00035399,2]
[313038433,1706668239888,-1802.35,0.0003544,5]
[313038434,1706668239900,-2437.21191302,0.00035481,2]
[313038435,1706668239912,-1800.56,0.00035562,5]
[313038436,1706668239923,-2475.46,0.00035616,2]
[313038437,1706668239932,-164.31,0.000357,7]
[313038438,1706668239942,-832.38625849,0.000357,2]
[313038439,1706668239951,-1786.76,0.0003572,5]
[313038440,1706668239961,-2437.21191302,0.00035783,2]
[313038441,1706668239971,-200.0,0.000358,9]
[313038442,1706668239981,-313.89447332,0.00035847,2]
[313038443,1706668240151,-210.0,0.00035911,13]
[313038444,1706668240162,-1820.67,0.00035918,5]
[313038445,1706668240172,-2437.21191302,0.00036085,2]
[313038446,1706668240182,-1777.09,0.00036152,5]
[313038447,1706668240192,-1362.0,0.00036292,2]
[313038448,1706668240201,-387.0,0.00036292,2]
[313038449,1706668240210,-951.656,0.00036292,2]
[313038450,1706668240219,-1861.0,0.00036292,2]
[313038451,1706668240229,-838.0,0.00036292,2]
[313038452,1706668240238,-168.03,0.00036292,2]
[313038453,1706668240248,-949.0,0.00036292,2]
[313038454,1706668240257,-215.0,0.00036292,2]
[313038455,1706668240266,-200.0,0.000363,10]
[313038456,1706668240275,-563.466685,0.000363,2]
[313038457,1706668240284,-2437.21191302,0.00036388,2]
[313038458,1706668240294,-313.89447332,0.00036532,2]
[313038460,1706668240303,-171.0131,0.00036548,4]
[313038462,1706668240312,-171.0131,0.00036648,4]
[313038463,1706668240322,-157.29,0.00036677,2]
[313038465,1706668240331,-2437.21191302,0.0003669,2]
[313038467,1706668240341,-151.0131,0.00036748,4]
[313038469,1706668240350,-200.0,0.000368,11]
[313038471,1706668240360,-151.0131,0.00036848,4]
[313038472,1706668240369,-2475.46,0.00036934,2]
[313038473,1706668240378,-151.0131,0.00036948,4]
[313038474,1706668240387,-2437.21191302,0.00036993,2]
[313038475,1706668240396,-150.90986219,0.00037,2]
[313038476,1706668240405,-1000.0,0.00037,2]
[313038477,1706668240416,-176.76,0.00037,2]
[313038478,1706668240426,-500.0,0.00037,2]
[313038479,1706668240435,-250.0,0.00037,2]
[313038480,1706668240444,-151.0131,0.00037048,4]
[313038481,1706668240454,-10000.0,0.00037055,4]
[313038482,1706668240464,-151.0131,0.00037148,4]
[313038483,1706668240474,-299.66239132,0.00037185,8]
[313038484,1706668240484,-313.89447332,0.00037216,2]
[313038485,1706668240493,-151.0131,0.00037248,4]
[313038486,1706668240502,-2840.74865,0.00037256,2]
[313038487,1706668240512,-250.0,0.00037274,2]
[313038488,1706668240521,-2437.21191302,0.00037295,2]
[313038489,1706668240530,-500.0,0.000373,15]
[313038490,1706668240540,-200.0,0.000373,11]
[313038491,1706668240549,-151.0131,0.00037348,6]
[313038492,1706668240558,-151.0131,0.00037448,6]
[313038493,1706668240568,-307.98581525,0.00037531,2]
[313038494,1706668240577,-151.0131,0.00037548,6]
[313038495,1706668240586,-180.79096353,0.00037548,2]
[313038496,1706668240596,-505.40310328,0.00037548,2]
[313038497,1706668240605,-251.48624578,0.00037548,2]
[313038498,1706668240615,-2437.21191302,0.00037598,2]
[313038499,1706668240624,-168.89956876,0.000376,2]
[313038500,1706668240633,-1003.75057932,0.000376,10]
[313038501,1706668240642,-155.66237035,0.000376,2]
[313038502,1706668240652,-211.0,0.00037607,2]
[313038503,1706668240665,-151.0131,0.00037648,6]
[313038504,1706668240676,-69619.5198411,0.00037673,2]
[313038505,1706668240687,-24014.33085005,0.00037699,2]
[313038506,1706668240697,-6629.57257398,0.000377,3]
[313038507,1706668240707,-151.0131,0.00037748,6]
[313038508,1706668240717,-1000.0,0.000378,6]
[313038509,1706668240727,-2000.0,0.000378,4]
[313038510,1706668240737,-584.3133354,0.00037848,2]
[313038511,1706668240747,-361.232219,0.00037848,2]
[313038512,1706668240757,-52464.7982745,0.00037874,2]
[313038513,1706668240767,-35310.0767079,0.00037874,2]
[313038514,1706668240777,-18155.3551413,0.00037874,2]
[313038515,1706668240786,-584.3133354,0.00037874,2]
[313038516,1706668240796,-584.3133354,0.00037874,2]
[313038517,1706668240806,-584.3133354,0.00037874,2]
[313038518,1706668240815,-361.232219,0.00037874,2]
[313038519,1706668240824,-361.232219,0.00037874,2]
[313038520,1706668240833,-361.232219,0.00037874,2]
[313038521,1706668240842,-4600.43974426,0.0003788,2]
[313038522,1706668240852,-1553.74996309,0.0003789,2]
[313038523,1706668240861,-5000.0,0.00037899,3]
[313038524,1706668240872,-1207.76511557,0.000379,7]
[313038525,1706668240881,-2009.65,0.000379,2]
[313038526,1706668240892,-3466.900233,0.000379,2]
[313038527,1706668240904,-313.89447332,0.000379,2]
[313038528,1706668240916,-163094.74634948,0.000379,3]
[313038529,1706668240954,-12742.66717538,0.000379,3]
[313038548,1706668243087,-520.14303817,0.00033,2]
[313038551,1706668243098,-2130.34773654,0.00033,2]
[313038553,1706668243110,-736.45,0.00033,2]
[313038556,1706668243129,-627.52602902,0.00033,2]
[313038558,1706668243286,-480.95319627,0.00033,2]
[313038559,1706668243296,-190.3911463,0.00033292,2]
[313038560,1706668243307,-339.26139319,0.00033292,2]
[313038561,1706668243319,-711.56146051,0.00033292,2]
[313038562,1706668243328,-705.0,0.00033292,2]
[313038563,1706668243338,-698.62442662,0.00033292,2]
[313038564,1706668243349,-325.39435214,0.00033292,2]
[313038565,1706668243360,-252.10322124,0.00033292,2]
[313038566,1706668243371,-391.727,0.00036292,2]
[313038567,1706668243380,-1249.0,0.00036292,2]
[313038569,1706668243390,-6859.53479378,0.000379,3]
[313038572,1706668243401,-521.53606673,0.000379,3]
[313038573,1706668243428,-42851.82402383,0.000379,3]
[313038592,1706668245932,-4563.41895228,0.000379,3]
[313038594,1706668245945,-2505.12168228,0.000379,3]
[313038604,1706668246035,-587.2050527,0.000379,3]
[313038606,1706668246047,-16802.34672906,0.000379,3]
[313038608,1706668246081,-9301.22189225,0.000379,3]
[313038613,1706668246125,-457.57599352,0.000379,3]
[313038615,1706668246137,-9396.36664746,0.000379,3]
[313038621,1706668246186,-859.39536,0.000379,3]
[313038624,1706668246197,-21336.49999999,0.000379,3]
[313038626,1706668246208,-479.96318635,0.000379,3]
[313038628,1706668246220,-280.21103288,0.000379,3]
[313038630,1706668246231,-658.85282172,0.000379,3]
[313038631,1706668246301,-155.0,0.00032999,2]
[313038632,1706668246310,-593.46470195,0.000379,3]
[313038633,1706668246322,-283.7162531,0.000379,3]
[313038649,1706669237158,-968.56038989,0.00024993,2]
[313038650,1706669237179,-3338.37650623,0.00024994,2]
[313038651,1706669237199,-1617.16666551,0.00024995,2]
[313038661,1706669432066,-807.13365824,0.00024996,2]
[313038662,1706669432076,-4532.60671085,0.00024997,2]
[313038663,1706669432085,-300.0,0.00024997,2]
[313038664,1706669432094,-150.0,0.00024997,2]
[313038665,1706669432104,-1421.45568983,0.00024998,2]
[313038666,1706669432113,-168.99755611,0.00024999,2]
[313038667,1706669432122,-168.99755611,0.00024999,2]
[313038668,1706669432132,-200.0,0.00025,2]
[313038669,1706669432141,-153.0,0.00027497,2]
[313038670,1706669432151,-173.22759923,0.00029899,2]
[313038671,1706669432161,-9159.62,0.000299,2]
[313038672,1706669432171,-434.98,0.000299,2]
[313038673,1706669432181,-851.01888412,0.000299,3]
[313038674,1706669432190,-677.1467638,0.00029997,2]
[313038675,1706669432199,-102.03341018,0.00029997,2]
[313038676,1706669432224,-814.15995737,0.00029997,2]
[313038677,1706669432240,-128.41634364,0.00029997,2]
[313038678,1706669432250,-277.96,0.00029998,2]
[313038679,1706669432258,-499.99,0.00029998,2]
[313038680,1706669432268,-11.45620825,0.00029999,2]
[313038681,1706669432282,-583.62522464,0.00029999,2]
[313038682,1706669432292,-3309.44,0.00029999,2]
[313038683,1706669432302,-155.0,0.00030424,2]
[313038684,1706669432495,-155.0,0.00030424,2]
[313038685,1706669432505,-155.0,0.00030424,2]
[313038686,1706669432515,-155.0,0.00030424,2]
[313038687,1706669432525,-155.0,0.00030424,2]
[313038688,1706669432536,-155.0,0.00030424,2]
[313038689,1706669432545,-173.22759923,0.00030425,2]
[313038690,1706669432555,-173.22759923,0.00030952,2]
[313038691,1706669432563,-173.22759923,0.00031478,2]
[313038692,1706669432573,-173.22759923,0.00032004,2]
[313038693,1706669432582,-1000.0,0.00032154,2]
[313038694,1706669432591,-173.22759923,0.00032531,2]
[313038695,1706669432600,-159.14,0.00032764,2]
[313038696,1706669432609,-200.0,0.00032998,2]
[313038697,1706669432618,-1248.10450888,0.00032999,4]
[313038698,1706669432627,-173.22759923,0.00033057,2]
[313038699,1706669432636,-173.22759923,0.00033584,2]
[313038700,1706669432646,-156.49,0.00034063,10]
[313038701,1706669432655,-173.22759923,0.0003411,2]
[313038702,1706669432665,-1759.79,0.00034405,2]
[313038703,1706669432675,-150.0,0.00034541,2]
[313038704,1706669432685,-451.64,0.00034577,2]
[313038705,1706669432694,-173.22759923,0.00034636,2]
[313038706,1706669432703,-369.41,0.00034659,2]
[313038707,1706669432713,-250.0,0.00034691,2]
[313038708,1706669432722,-500.0,0.00034745,2]
[313038709,1706669432731,-153.6,0.00034756,2]
[313038710,1706669432740,-200.0,0.00034797,5]
[313038711,1706669432752,-156.49,0.00034898,10]
[313038712,1706669432761,-5000.0,0.00035,7]
[313038713,1706669432771,-173.22759923,0.00035163,2]
[313038714,1706669432780,-243.34,0.000352,3]
[313038715,1706669432789,-243.34,0.000352,3]
[313038716,1706669432799,-243.34,0.000352,3]
[313038717,1706669432808,-243.34,0.000352,3]
[313038718,1706669432818,-243.34,0.000352,3]
[313038719,1706669432827,-243.34,0.000352,3]
[313038720,1706669432837,-243.34,0.000352,3]
[313038721,1706669432846,-243.34,0.000352,3]
[313038722,1706669432855,-243.34,0.000352,3]
[313038723,1706669432864,-243.34,0.000352,3]
[313038724,1706669432873,-243.34,0.000352,3]
[313038725,1706669432882,-243.34,0.000352,3]
[313038726,1706669432892,-243.34,0.000352,3]
[313038727,1706669432901,-243.34,0.000352,3]
[313038728,1706669432910,-243.34,0.000352,3]
[313038729,1706669432920,-243.34,0.000352,3]
[313038730,1706669432929,-243.34,0.000352,3]
[313038731,1706669432938,-243.34,0.000352,3]
[313038732,1706669432947,-243.34,0.000352,3]
[313038733,1706669432956,-243.34,0.000352,3]
[313038734,1706669432965,-1874.67,0.0003526,2]
[313038735,1706669432974,-548.36,0.00035416,2]
[313038736,1706669432983,-152.49102744,0.00035575,2]
[313038737,1706669432992,-1485.27,0.00035619,2]
[313038738,1706669433002,-250.0,0.00035658,111]
[313038739,1706669433011,-153.6,0.00035661,2]
[313038740,1706669433020,-173.22759923,0.00035689,2]
[313038741,1706669433029,-156.49,0.00035733,10]
[313038742,1706669433038,-173.22759923,0.00036215,2]
[313038743,1706669433047,-153.6,0.00036567,2]
[313038744,1706669433056,-156.49,0.00036567,10]
[313038745,1706669433064,-159.14,0.00036675,2]
[313038746,1706669433073,-173.22759923,0.00036742,2]
[313038747,1706669433082,-1485.27,0.00036937,2]
[313038748,1706669433091,-150.0,0.00037,2]
[313038749,1706669433102,-1000.0,0.00037,2]
[313038750,1706669433111,-335.18,0.0003726,2]
[313038751,1706669433120,-344.77,0.0003726,2]
[313038752,1706669433129,-171.78,0.0003726,2]
[313038753,1706669433138,-173.22759923,0.00037268,2]
[313038754,1706669433147,-156.49,0.00037402,10]
[313038755,1706669433156,-152.00638992,0.00037548,2]
[313038756,1706669433166,-830.935897,0.00037597,5]
[313038757,1706669433176,-164.44711027,0.00037761,2]
[313038758,1706669433185,-2182.65,0.00037769,10]
[313038759,1706669433194,-2353.4136,0.00037789,2]
[313038760,1706669433203,-2000.0,0.0003779,4]
[313038761,1706669433212,-173.22759923,0.00037795,2]
[313038762,1706669433221,-851.01888412,0.00037799,4]
[313038763,1706669433229,-2500.0,0.00037799,2]
[313038764,1706669433238,-1738.7726,0.000378,3]
[313038765,1706669433247,-1039.9623,0.000378,2]
[313038766,1706669433256,-2807.0421,0.000378,2]
[313038767,1706669433265,-152.32574462,0.000378,2]
[313038768,1706669433275,-3175.71193183,0.000378,2]
[313038769,1706669433287,-3175.7119318,0.00037825,2]
[313038770,1706669433295,-3175.7119318,0.0003785,2]
[313038771,1706669433305,-3175.7119318,0.00037875,2]
[313038772,1706669433314,-412.2635,0.0003789,2]
[313038773,1706669433324,-288.03125086,0.00037899,4]
[313038774,1706669433333,-93068.82969156,0.00037899,2]
[313038775,1706669433342,-500.0,0.000379,2]
[313038776,1706669433351,-685.97803334,0.000379,4]
[313038777,1706669433361,-1100.09233653,0.000379,7]
[313038778,1706669433370,-155.65396902,0.000379,4]
[313038779,1706669433379,-150.0,0.000379,2]
[313038780,1706669433388,-1893.83243,0.000379,2]
[313038781,1706669433398,-367.532017,0.000379,12]
[313038782,1706669433407,-542.49914862,0.000379,2]
[313038783,1706669433416,-3175.7119318,0.000379,2]
[313038784,1706669433426,-152.31410458,0.000379,3]
[313038785,1706669433434,-584.31333568,0.00037912,2]
[313038786,1706669433443,-361.23221924,0.00037912,2]
[313038787,1706669433452,-166.7722625,0.00037912,2]
[313038788,1706669433461,-210.0,0.00037933,2]
[313038789,1706669433469,-166.7722625,0.00037974,2]
[313038790,1706669433479,-78322.67698048,0.0003799,3]
[313038791,1706669433507,-3196.84416972,0.0003799,3]
[313038792,1706669433517,-191.04417907,0.0003799,2]
[313038793,1706669433526,-308.85594344,0.00037997,4]
[313038794,1706669433535,-406.04868973,0.00037998,4]
[313038795,1706669433544,-155.0,0.00037998,2]
[313038796,1706669433553,-268.42503343,0.00037998,4]
[313038797,1706669433562,-216.72396602,0.00037999,4]
[313038798,1706669433571,-1004.7644,0.00037999,2]
[313038799,1706669433580,-17774.38587643,0.00038,2]
[313038800,1706669433594,-391.73008624,0.00038,2]
[313038801,1706669433605,-3256.71954905,0.00038,2]
[313038802,1706669433624,-528.87484806,0.00038,2]
[313038809,1706669438489,-4312.20408656,0.00024998,2]
[313039011,1706669440615,-451.84582405,0.00024998,2]
[313039030,1706669441458,-35075.67662751,0.00024998,2]
[313039031,1706669441467,-202.58121259,0.00035,2]
[313039032,1706669441477,-152.49102744,0.00036099,2]
[313039033,1706669441486,-3407.85,0.00037889,10]
[313039034,1706669441496,-275361.78833305,0.00038,2]
[313039035,1706669441505,-33680.4040877,0.00038,2]
[313039036,1706669441514,-51832.42021074,0.00038,2]
[313039037,1706669441523,-152.32574456,0.00038003,2]
[313039038,1706669441533,-151.0131,0.00038148,8]
[313039039,1706669441542,-150.0,0.0003818,2]
[313039040,1706669441551,-152.32574456,0.00038206,2]
[313039041,1706669441561,-1485.27,0.00038255,2]
[313039042,1706669441571,-173.22759923,0.00038321,2]
[313039043,1706669441580,-500.0,0.000384,2]
[313039044,1706669441590,-152.32574456,0.00038408,2]
[313039045,1706669441599,-151.0131,0.00038448,8]
[313039046,1706669441608,-2100.0,0.000385,30]
[313039047,1706669441618,-5435.0206394,0.00038517,10]
[313039048,1706669441628,-152.32574456,0.00038611,2]
[313039049,1706669441637,-151.0131,0.00038748,8]
[313039050,1706669441648,-820.16193616,0.00038799,14]
[313039051,1706669441658,-25082.78368159,0.000388,4]
[313039052,1706669441667,-152.32574456,0.00038814,2]
[313039053,1706669441678,-173.22759923,0.00038847,2]
[313039054,1706669441687,-166.7722625,0.00038853,2]
[313039055,1706669441697,-31750.85028528,0.0003887,4]
[313039056,1706669441737,-2245.84631665,0.0003887,4]
[313039065,1706669443101,-47522.82454827,0.0003887,4]
[313039066,1706669443113,-7543.46474368,0.0003888,2]
[313039068,1706669443122,-451.64,0.00038899,2]
[313039070,1706669443132,-363.14934209,0.0003898,2]
[313039072,1706669443141,-226.00862681,0.00039,4]
[313039077,1706669443202,-395.76961291,0.00039,4]
[313039078,1706669443212,-94.01563223,0.00039,4]
[313039079,1706669443255,-884.59303682,0.00039,4]
[313039080,1706669443264,-491.15820407,0.00039,4]
[313039081,1706669443274,-1432.18317414,0.00039,2]
[313039082,1706669443286,-1000.12969672,0.00039,2]
[313039083,1706669443295,-208.01143623,0.00039,24]
[313039084,1706669443315,-1423.31032277,0.00039,24]
[313039085,1706669443325,-152.32574456,0.00039017,2]
[313039086,1706669443336,-1814.15,0.00039018,5]
[313039087,1706669443345,-572.0,0.00039074,5]
[313039088,1706669443355,-152.0,0.00039109,3]
[313039089,1706669443366,-151.0131,0.00039148,8]
[313039090,1706669443375,-152.32574456,0.0003922,2]
[313039091,1706669443385,-1083.5590003,0.00039221,5]
[313039115,1706669446193,-998.7381298,0.0003799,10]
[313039116,1706669446250,-652.9326512,0.0003799,10]
[313039117,1706669446307,-1188.199219,0.0003799,10]
[313039118,1706669446318,-564.99356077,0.00037999,4]
[313039119,1706669446328,-155.0,0.00037999,2]
[313039120,1706669446339,-665.32024348,0.00039221,5]
[313039121,1706669446366,-80.48075622,0.00039221,5]
[313039122,1706669446376,-678.46573653,0.00039244,2]
[313039123,1706669446420,-2613.58068355,0.00039244,2]
[313039126,1706669469867,4600.0,0.00023,2]
[313039127,1706670401094,-420.51663594,0.00022769,2]
[313039128,1706670401115,-596.0,0.0002277,2]
[313039129,1706670401134,-1000.0,0.00022799,2]
[313039130,1706670401155,-188.48415628,0.00022799,2]
[313039131,1706670401175,-150.0,0.00022895,2]
[313039132,1706670401195,-796.33889857,0.00022896,2]
[313039133,1706670426093,-420.51663594,0.00022895,2]
[313039134,1706670426115,-121656.98909214,0.00022896,2]
[313039135,1706670433082,751.81,0.00029,30]
[313039139,1706670632243,-394.61416969,0.00022798,2]
[313039140,1706670632298,-25.90246625,0.00022798,2]
[313039141,1706670632308,-2500.0,0.00022799,2]
[313039142,1706670632317,-5074.91717368,0.00022896,2]
[313039143,1706670632329,-411.68315571,0.00022896,2]
[313039144,1706670632353,-499.82864977,0.00022896,2]
[313039145,1706670632365,-48245.05795485,0.00022896,2]
[313039146,1706670632377,-327.01287504,0.00022896,2]
[313039147,1706670632410,-42702.2953742,0.00022896,2]
[313039148,1706670632419,-299.35838825,0.00022897,2]
[313039149,1706670632429,-268.9978855,0.00022897,2]
[313039150,1706670632439,-36583.9572,0.00022899,2]
[313039151,1706670632449,-149592.26498355,0.00022899,2]
[313039152,1706670632465,-353.62981947,0.00022899,2]
[313039153,1706670632478,-1456.18436291,0.00022899,2]
[313039154,1706670632515,-174805.28563407,0.00022899,2]
[313039155,1706670632525,-401.71342552,0.000229,2]
[313039156,1706670632534,-197.45190886,0.000229,2]
[313039157,1706670632546,-155.66237035,0.000229,2]
[313039158,1706670632556,-1719.97678274,0.000229,2]
[313039159,1706670632565,-487.13238724,0.000229,2]
[313039165,1706670638488,-1153.19148506,0.000229,2]
[313039166,1706670638497,-626.83845386,0.000229,2]
[313039167,1706670638506,-1161.64264114,0.000229,2]
[313039168,1706670638515,-150.86737056,0.0002299,2]
[313039169,1706670638525,-150.86737056,0.0002299,2]
[313039170,1706670638534,-390.75188326,0.00022999,2]
[313039171,1706670638544,-1770.63756873,0.00022999,2]
[313039172,1706670638553,-95094.56246986,0.00023,2]
[313039173,1706670640851,-4282.63383082,0.00023,2]
[313039174,1706670641636,-1430.18375976,0.00023,2]
[313039175,1706670641651,-1536.12040449,0.00023,2]
[313039176,1706670641662,-14089.96194122,0.00023,2]
[313039177,1706670641693,-9771.98735318,0.00023,2]
[313039178,1706670641704,-857.11708292,0.00023,2]
[313039179,1706670641717,-751.02933199,0.00023,2]
[313039213,1706670644077,-367703.43092017,0.00023,2]
[313039215,1706670644088,-9206.46608902,0.00023,2]
[313039232,1706670644243,-5479.2620135,0.00023,2]
[313039234,1706670646629,-1433.49229833,0.00023,2]
[313039235,1706670646641,-436.65255835,0.00023,2]
[313039236,1706670646672,-255.12434134,0.00023,2]
[313039237,1706670646684,-1288.17523618,0.00023,2]
[313039238,1706670646753,-3962.09042165,0.00023,2]
[313039239,1706670646764,-2666.40603231,0.00023,2]
[313039288,1706670842881,152.89090886,0.00022,2]
[313039291,1706671582777,513.10996403,0.00021885,2]
[313039293,1706671831517,-321.90484521,0.00022696,2]
[313039294,1706671831529,-98.61179073,0.00022696,2]
[313039295,1706671831538,-463.88784067,0.00022697,2]
[313039296,1706671831550,-4068.71887018,0.00022697,2]
[313039297,1706671831559,-188.48415626,0.00022699,2]
[313039298,1706671831568,-295.13012139,0.00022797,2]
[313039299,1706671831577,-245.62195832,0.00022797,2]
[313039300,1706671831586,-30266.31099141,0.00022797,2]
[313039301,1706671831596,-14642.50852932,0.00022798,2]
[313039302,1706671831606,-355.32918985,0.00022798,2]
[313039303,1706671831615,-1326.05436426,0.00022798,2]
[313039304,1706671831624,-4766.04268603,0.00022799,2]
[313039305,1706671831636,-252.7154311,0.00022799,2]